bitfinex-derivatives/quotes_BNBF0:USTF0_20250529
["timestamp","ask_amount","ask_price","bid_price","bid_amount"]
[1748498092120,0.29276147,683.15,681.82,1.05436267]
[1748498092318,0.29276147,683.15,681.83,1.05434424]
[1748498092516,0.29276147,683.15,681.84,1.05434424]
[1748498092721,0.29276147,683.15,681.73,0.551]
[1748498092722,0.29276147,683.15,681.85,1.05434424]
[1748498092916,0.29276147,683.15,681.86,1.05434424]
[1748498093121,0.29276147,683.15,681.87,1.05434424]
[1748498093319,0.29276147,683.15,681.88,1.05433088]
[1748498093622,0.29276147,683.15,681.89,1.05433088]
[1748498093821,0.29276147,683.15,681.9,1.05433088]
[1748498094021,0.29276147,683.15,681.91,1.05433088]
[1748498094223,0.29276147,683.15,681.92,1.05433088]
[1748498094423,0.29276147,683.15,681.93,1.05433088]
[1748498094624,0.29276147,683.15,681.94,1.05433088]
[1748498094824,0.29276147,683.15,681.73,0.551]
[1748498094825,0.29276147,683.15,681.95,1.05433088]
[1748498095025,0.29276147,683.15,681.96,1.05428499]
[1748498095221,0.29276147,683.15,681.97,1.05428499]
[1748498095428,0.29276147,683.15,681.98,1.05428518]
[1748498095626,0.29276147,683.15,681.99,1.05428518]
[1748498095825,0.29276147,683.15,681.73,0.551]
[1748498095826,0.29276147,683.15,682.0,1.05428518]
[1748498096021,0.29276147,683.15,682.01,1.05428518]
[1748498096226,0.29276147,683.15,682.02,1.05428518]
[1748498096422,0.29276147,683.15,682.03,1.05432882]
[1748498096726,0.29276147,683.15,681.73,0.551]
[1748498096727,0.29276147,683.15,682.04,1.05432987]
[1748498096926,0.29276147,683.15,682.05,1.05432987]
[1748498097228,0.29276147,683.15,682.06,1.05432987]
[1748498097525,0.29276147,683.15,682.07,1.05432987]
[1748498097722,0.29276147,683.15,682.08,1.05432987]
[1748498098019,0.29276147,683.15,681.73,0.551]
[1748498098020,0.29276147,683.15,682.09,1.05408388]
[1748498098224,0.29276147,683.15,682.1,1.05408385]
[1748498098424,0.29276147,683.15,682.11,1.05409736]
[1748498098627,0.29276147,683.15,681.73,0.551]
[1748498098926,0.29276147,683.15,681.74,1.05414554]
[1748498099127,0.29276147,683.15,681.75,1.05414554]
[1748498099324,0.29276147,683.15,681.76,1.05414554]
[1748498099523,0.29276147,683.15,681.77,1.05414554]
[1748498099828,0.29276147,683.15,681.78,1.05414554]
[1748498100025,0.29276147,683.15,681.79,1.05414554]
[1748498100225,0.29276147,683.15,681.8,1.05414554]
[1748498100427,0.29276147,683.15,681.81,1.05414554]
[1748498100623,0.29276147,683.15,681.82,1.05402248]
[1748498100823,0.29276147,683.15,681.83,1.05402248]
[1748498101026,0.29276147,683.15,681.84,1.05402248]
[1748498101328,0.29276147,683.15,681.85,1.05360133]
[1748498101522,0.29276147,683.15,681.86,1.05360871]
[1748498101829,0.29276147,683.15,681.87,1.05423228]
[1748498102123,0.29276147,683.15,681.88,1.64027806]
[1748498102323,0.29276147,683.15,681.89,1.64027806]
[1748498102520,0.29276147,683.15,681.9,1.64027806]
[1748498102722,0.29276147,683.15,681.73,0.551]
[1748498102723,0.29276147,683.15,681.91,1.64020996]
[1748498102927,0.29276147,683.15,681.92,1.64070974]
[1748498103127,0.29276147,683.15,681.93,1.64070806]
[1748498103325,0.29276147,683.15,681.94,1.64060627]
[1748498103527,0.29276147,683.15,681.95,1.64060627]
[1748498103726,0.29276147,683.15,681.96,1.64060627]
[1748498103928,0.29276147,683.15,681.97,0.58646897]
[1748498104226,0.29276147,683.15,681.98,1.64077566]
[1748498104430,0.29276147,683.15,681.73,0.551]
[1748498104629,0.29276147,683.15,681.74,1.64084918]
[1748498104833,0.29276147,683.15,681.75,1.64086159]
[1748498105030,0.29276147,683.15,681.76,1.64086159]
[1748498105230,0.29276147,683.15,681.77,1.64086159]
[1748498105533,0.29276147,683.15,681.78,1.6408945]
[1748498105833,0.29276147,683.15,681.79,1.6408945]
[1748498106029,0.29276147,683.15,681.8,1.64085569]
[1748498106227,0.29276147,683.15,681.81,1.64085569]
[1748498106431,0.29276147,683.15,681.82,0.58657298]
[1748498106733,0.29276147,683.15,681.83,1.64090744]
[1748498106933,0.29276147,683.15,681.84,1.64090744]
[1748498107128,0.29276147,683.15,681.85,1.64090744]
[1748498107330,0.29276147,683.15,681.86,1.64090744]
[1748498107532,0.29276147,683.15,681.87,1.64090744]
[1748498107732,0.29276147,683.15,681.88,0.58659134]
[1748498107931,0.29276147,683.15,681.89,1.64094988]
[1748498108127,0.29276147,683.15,681.9,1.05434594]
[1748498108433,0.29276147,683.15,681.91,1.6409539]
[1748498108634,0.29276147,683.15,681.92,1.6409539]
[1748498108829,0.29276147,683.15,681.93,1.6409539]
[1748498109130,0.29276147,683.15,681.94,1.05434951]
[1748498109332,0.29276147,683.15,681.95,1.64138942]
[1748498109631,0.29276147,683.15,681.96,2.69623092]
[1748498109831,0.29276147,683.15,681.97,1.64159571]
[1748498110032,0.29276147,683.15,681.98,1.64159571]
[1748498110337,0.29276147,683.15,681.99,1.05475979]
[1748498110537,0.29276147,683.15,682.0,1.05475979]
[1748498110835,0.29276147,683.15,682.01,1.05475979]
[1748498111035,0.29276147,683.15,682.02,1.05475979]
[1748498111232,0.29276147,683.15,682.03,1.05475979]
[1748498111430,0.29276147,683.15,682.04,1.05475979]
[1748498111632,0.29276147,683.15,681.73,0.551]
[1748498111832,0.29276147,683.15,681.74,1.63297188]
[1748498112032,0.29276147,683.15,681.75,1.63297188]
[1748498112231,0.29276147,683.15,681.76,1.63297188]
[1748498112436,0.29276147,683.15,681.77,0.57881807]
[1748498112635,0.29276147,683.15,681.78,0.57881807]
[1748498112832,0.29276147,683.15,681.79,0.57886758]
[1748498113131,0.29276147,683.15,681.8,0.57886758]
[1748498113336,0.29276147,683.15,681.81,0.57886758]
[1748498113533,0.29276147,683.15,681.82,0.57886758]
[1748498113737,0.29276147,683.15,681.83,0.57886758]
[1748498113936,0.29276147,683.15,681.84,0.57886758]
[1748498114134,0.29276147,683.15,681.85,0.57886758]
[1748498114337,0.29276147,683.15,681.86,0.57866821]
[1748498114535,0.29276147,683.15,681.87,0.57866821]
[1748498114740,0.29276147,683.15,681.88,0.57851763]
[1748498114937,0.29276147,683.15,681.89,0.57851763]
[1748498115237,0.29276147,683.15,681.9,0.57851763]
[1748498115535,0.29276147,683.15,681.91,0.57851763]
[1748498115837,0.29276147,683.15,681.76,0.615]
[1748498116132,0.29276147,683.15,681.77,0.57849295]
[1748498116333,0.29276147,683.15,681.78,0.5783636]
[1748498116540,0.29276147,683.15,681.79,0.5783636]
[1748498116839,0.29276147,683.15,681.76,0.615]
[1748498116840,0.29276147,683.15,681.8,0.5783636]
[1748498117034,0.29276147,683.15,681.81,0.5783636]
[1748498117238,0.29276147,683.15,681.82,0.5783636]
[1748498117534,0.29276147,683.15,681.83,0.5783636]
[1748498117740,0.29276147,683.15,681.84,0.5783636]
[1748498117934,0.29276147,683.15,681.85,0.5783636]
[1748498118238,0.29276147,683.15,681.86,0.57813594]
[1748498118440,0.29276147,683.15,681.87,0.57813594]
[1748498118640,0.29276147,683.15,681.88,0.57813594]
[1748498118941,0.29276147,683.15,681.89,1.26613594]
[1748498119140,0.29276147,683.15,681.9,0.578056]
[1748498119340,0.29276147,683.15,681.91,0.578056]
[1748498119540,0.29276147,683.15,681.92,0.57800993]
[1748498119740,0.29276147,683.15,681.93,0.57800993]
[1748498119938,0.29276147,683.15,681.89,0.688]
[1748498120241,0.29276147,683.15,681.9,0.57800803]
[1748498120537,0.29276147,683.15,681.91,0.57800803]
[1748498120739,0.29276147,683.15,681.89,0.688]
[1748498120740,0.29276147,683.15,681.92,0.57800803]
[1748498121041,0.29276147,683.15,681.93,0.57795071]
[1748498121240,0.29276147,683.15,681.94,0.57794821]
[1748498121437,0.29276147,683.15,681.89,0.688]
[1748498121638,0.29276147,683.15,681.9,0.57790989]
[1748498121839,0.29276147,683.15,681.91,0.57790989]
[1748498122036,0.29276147,683.15,681.92,0.57790989]
[1748498122235,0.29276147,683.15,681.93,0.57790989]
[1748498122437,0.29276147,683.15,681.94,0.57790989]
[1748498122643,0.29276147,683.15,681.89,0.688]
[1748498122845,0.29276147,683.15,681.9,0.57787929]
[1748498123142,0.29276147,683.15,681.91,0.57787929]
[1748498123442,0.29276147,683.15,681.89,0.688]
[1748498123443,0.29276147,683.15,681.92,0.57787929]
[1748498123741,0.29276147,683.15,681.93,0.57787929]
[1748498123942,0.29276147,683.15,681.94,0.57787929]
[1748498124137,0.29276147,683.15,681.95,0.57774045]
[1748498124338,0.29276147,683.15,681.96,0.57774045]
[1748498124538,0.29276147,683.15,681.97,0.57774045]
[1748498124741,0.29276147,683.15,681.98,0.5777305]
[1748498124942,0.29276147,683.15,681.99,0.5777305]
[1748498125139,0.29276147,683.15,682.0,0.5777305]
[1748498125341,0.29276147,683.15,681.89,0.688]
[1748498125544,0.29276147,683.15,681.9,0.57773312]
[1748498125742,0.29276147,683.15,681.91,0.57773312]
[1748498125944,0.29276147,683.15,681.92,0.57773312]
[1748498126141,0.29276147,683.15,681.93,0.57772922]
[1748498126339,0.29276147,683.15,681.94,0.57772815]
[1748498126539,0.29276147,683.15,681.89,0.688]
[1748498126739,0.29276147,683.15,681.9,0.57769974]
[1748498126943,0.29276147,683.15,681.89,0.688]
[1748498127947,0.29276147,683.15,681.9,0.57763522]
[1748498128141,0.29276147,683.15,681.89,0.688]
[1748498128544,0.29276147,683.15,681.9,0.57752006]
[1748498128745,0.29276147,683.15,681.89,0.688]
[1748498128940,0.29276147,683.15,681.9,0.57751175]
[1748498129245,0.29276147,683.15,681.89,0.688]
[1748498129441,0.29276147,683.15,681.9,0.57749572]
[1748498129644,0.29276147,683.15,681.91,0.57749572]
[1748498129843,0.29276147,683.15,681.92,0.57749572]
[1748498130041,0.29276147,683.15,681.93,0.57749572]
[1748498130245,0.29276147,683.15,681.94,1.62194253]
[1748498130542,0.29276147,683.15,681.95,1.6219418]
[1748498130742,0.29276147,683.15,681.89,0.688]
[1748498130945,0.29276147,683.15,681.9,0.57695975]
[1748498131146,0.29276147,683.15,681.91,1.62140611]
[1748498131546,0.29276147,683.15,681.92,0.57696024]
[1748498131843,0.29276147,683.15,681.93,0.57695881]
[1748498132047,0.29276147,683.15,681.94,0.57695802]
[1748498132241,0.29276147,683.15,681.95,0.57695802]
[1748498132445,0.29276147,683.15,681.96,0.57695802]
[1748498132645,0.29276147,683.15,681.97,0.57762232]
[1748498132946,0.29276147,683.15,681.98,0.57762232]
[1748498133150,0.29276147,683.15,681.99,0.57762232]
[1748498133348,0.29276147,683.15,682.0,1.62187205]
[1748498133544,0.29276147,683.15,682.01,1.62187344]
[1748498133747,0.29276147,683.15,682.02,1.62187344]
[1748498134044,0.29276147,683.15,682.03,1.62186228]
[1748498134348,0.29276147,683.15,682.04,1.04421144]
[1748498134548,0.29276147,683.15,682.05,1.62186173]
[1748498134744,0.29276147,683.15,682.06,1.62186173]
[1748498134946,0.29276147,683.15,682.07,1.62190774]
[1748498135146,0.29276147,683.15,681.89,0.688]
[1748498135345,0.29276147,683.15,681.9,1.62191705]
[1748498135545,0.29276147,683.15,681.91,0.57766848]
[1748498135744,0.29276147,683.15,681.92,1.62195081]
[1748498135942,0.29276147,683.15,681.93,1.62196095]
[1748498136150,0.29276147,683.15,681.94,1.62196095]
[1748498136345,0.29276147,683.15,681.89,0.688]
[1748498136346,0.29276147,683.15,681.95,1.62196138]
[1748498136546,0.29276147,683.15,681.96,0.57767198]
[1748498136845,0.29276147,683.15,681.97,1.62189797]
[1748498137046,0.29276147,683.15,681.98,1.62186783]
[1748498137348,0.29276147,683.15,681.99,1.62185392]
[1748498137549,0.29276147,683.15,682.0,1.62189906]
[1748498137750,0.29276147,683.15,682.01,1.62189906]
[1748498138051,0.29276147,683.15,682.02,1.62186947]
[1748498138351,0.29276147,683.15,682.03,1.62186947]
[1748498138553,0.29276147,683.15,682.04,1.62201057]
[1748498138751,0.29276147,683.15,682.05,1.62201057]
[1748498139051,0.29276147,683.15,682.06,1.6220103]
[1748498139250,0.29276147,683.15,682.07,1.6220103]
[1748498139451,0.29276147,683.15,682.08,1.04432087]
[1748498139651,0.29276147,683.15,682.09,1.04432087]
[1748498139953,0.29276147,683.15,682.1,1.04432087]
[1748498140152,0.29276147,683.15,682.11,1.04432087]
[1748498140452,0.29276147,683.15,681.89,0.688]
[1748498140453,0.29276147,683.15,682.12,1.04432087]
[1748498140752,0.29276147,683.15,682.13,1.04432087]
[1748498140948,0.29276147,683.15,682.14,1.04443885]
[1748498141148,0.29276147,683.15,682.15,1.04443885]
[1748498141349,0.29276147,683.15,682.16,1.04443885]
[1748498141553,0.29276147,683.15,681.89,0.688]
[1748498141756,0.29276147,683.15,681.9,1.62328844]
[1748498141956,0.29276147,683.15,681.91,1.62409294]
[1748498142153,0.29276147,683.15,681.92,1.62409027]
[1748498142353,0.29276147,683.15,681.93,1.62414977]
[1748498142653,0.29276147,683.15,681.94,1.62416754]
[1748498142853,0.29276147,683.15,681.95,1.62416754]
[1748498143156,0.29276147,683.15,681.96,1.62418744]
[1748498143350,0.29276147,683.15,681.97,1.62418744]
[1748498143553,0.29276147,683.15,681.98,1.62418744]
[1748498143753,0.29276147,683.15,681.99,0.57894214]
[1748498143956,0.29276147,683.15,682.0,1.04538456]
[1748498144153,0.29276147,683.15,682.01,1.62430316]
[1748498144357,0.29276147,683.15,681.89,0.688]
[1748498144758,0.29276147,683.15,681.9,1.62434317]
[1748498144958,0.29276147,683.15,681.91,0.57893184]
[1748498145160,0.29276147,683.15,681.89,0.688]
[1748498145560,0.29276147,683.15,681.9,1.04538387]
[1748498145756,0.29276147,683.15,681.89,0.688]
[1748498145961,0.29276147,683.15,681.9,0.57905927]
[1748498146156,0.29276147,683.15,681.91,0.57907572]
[1748498146357,0.29276147,683.15,681.9,0.57905927]
[1748498146862,0.29276147,683.15,681.91,1.62571162]
[1748498147058,0.29276147,683.15,681.92,1.04657433]
[1748498147261,0.29276147,683.15,681.93,1.04657433]
[1748498147461,0.29276147,683.15,681.9,0.57905927]
[1748498147960,0.29276147,683.15,681.91,1.04663113]
[1748498148159,0.29276147,683.15,681.92,1.62579658]
[1748498148365,0.29276147,683.15,681.9,0.57905927]
[1748498148564,0.29276147,683.15,681.91,1.0466414]
[1748498148759,0.29276147,683.15,681.9,0.57905927]
[1748498148965,0.29276147,683.15,681.91,0.5791571]
[1748498149265,0.29276147,683.15,681.9,0.57905927]
[1748498149462,0.29276147,683.15,681.91,1.04661444]
[1748498149662,0.29276147,683.15,681.92,1.62577039]
[1748498149862,0.29276147,683.15,681.9,0.57905927]
[1748498149863,0.29276147,683.15,681.93,1.62570819]
[1748498150064,0.29276147,683.15,681.94,1.62573469]
[1748498150267,0.29276147,683.15,681.9,0.57905927]
[1748498150466,0.29276147,683.15,681.91,1.62575724]
[1748498150661,0.29276147,683.15,681.92,1.62575468]
[1748498150866,0.29276147,683.15,681.93,1.62572138]
[1748498151062,0.29276147,683.15,681.9,0.57905927]
[1748498151063,0.29276147,683.15,681.94,1.62572154]
[1748498151262,0.29276147,683.15,681.95,1.62572154]
[1748498151462,0.29276147,683.15,681.96,1.62589368]
[1748498151669,0.29276147,683.15,681.97,1.62589368]
[1748498151863,0.29276147,683.15,681.98,1.04670119]
[1748498152061,0.29276147,683.15,681.9,0.57905927]
[1748498152262,0.29276147,683.15,681.99,1.04718455]
[1748498152467,0.29276147,683.15,682.0,1.04737942]
[1748498152662,0.29276147,683.15,682.01,1.04750355]
[1748498152861,0.29276147,683.15,682.02,1.04750355]
[1748498153067,0.29276147,683.15,682.01,0.614]
[1748498153261,0.29276147,683.15,682.02,1.04763758]
[1748498153467,0.29276147,683.15,682.03,1.04833033]
[1748498153664,0.29276147,683.15,682.04,1.04835148]
[1748498153962,0.29276147,683.15,682.01,0.614]
[1748498153963,0.29276147,683.15,682.05,1.04835958]
[1748498154164,0.29276147,683.15,682.01,0.614]
[1748498154363,0.29276147,683.15,682.02,1.04833685]
[1748498154662,0.29276147,683.15,682.03,1.04833379]
[1748498154863,0.29276147,683.15,682.04,1.04833379]
[1748498155064,0.29276147,683.15,682.05,1.04833379]
[1748498155263,0.29276147,683.15,682.01,0.614]
[1748498155468,0.29276147,683.15,682.02,1.04819863]
[1748498155669,0.29276147,683.15,682.01,0.614]
[1748498155969,0.29276147,683.15,682.02,1.04796695]
[1748498156169,0.29276147,683.15,682.03,1.6273362]
[1748498156366,0.29276147,683.15,682.04,1.62726]
[1748498156565,0.29276147,683.15,682.05,1.62726]
[1748498156767,0.29276147,683.15,682.06,1.62726]
[1748498156968,0.29276147,683.15,682.07,1.0480055]
[1748498157167,0.29276147,683.15,682.08,1.04799589]
[1748498157467,0.29276147,683.15,682.01,0.614]
[1748498157966,0.29276147,683.15,682.02,2.09643298]
[1748498158170,0.29276147,683.15,682.03,1.04829503]
[1748498158371,0.29276147,683.15,682.04,1.04829503]
[1748498158574,0.29276147,683.15,682.05,1.04845615]
[1748498158872,0.29276147,683.15,682.06,1.04851526]
[1748498159066,0.29276147,683.15,682.02,1.69613795]
[1748498160272,0.29276147,683.15,682.03,1.04861265]
[1748498160469,0.29276147,683.15,682.02,1.69613795]
[1748498161276,0.29276147,683.15,682.03,1.04899091]
[1748498161473,0.29276147,683.15,682.04,1.04913757]
[1748498161681,0.29276147,683.15,682.02,1.69613795]
[1748498162670,0.29276147,683.15,682.03,1.04912524]
[1748498162871,0.29276147,683.15,682.02,1.69613795]
[1748498164475,0.29276147,683.15,682.03,1.04940834]
[1748498164774,0.29276147,683.15,682.02,1.69613795]
[1748498165570,0.29276147,683.15,682.03,1.04938284]
[1748498165875,0.29276147,683.15,682.02,1.69613795]
[1748498167378,0.29276147,683.15,682.03,1.04943435]
[1748498167578,0.29276147,683.15,682.02,1.69613795]
[1748498167984,0.29276147,683.15,682.03,1.04944737]
[1748498168286,0.29276147,683.15,682.02,1.69613795]
[1748498168486,0.29276147,683.15,682.03,1.0496699]
[1748498182391,0.29276147,683.15,682.04,1.04912121]
[1748498182591,0.29276147,683.15,682.04,0.466]
[1748498185894,0.25470807,682.88,682.04,0.466]
[1748498186093,0.2928858,682.86,682.04,0.466]
[1748498197010,0.2928858,682.86,682.05,1.04975601]
[1748498199104,0.2928858,682.86,682.06,1.04990835]
[1748498199310,0.2928858,682.86,682.05,1.04975601]
[1748498199811,0.2928858,682.86,682.06,1.05000073]
[1748498200011,0.2928858,682.86,682.05,1.04975601]
[1748498200409,0.2928858,682.86,682.06,1.0501399]
[1748498200614,0.2928858,682.86,682.07,1.0501429]
[1748498201414,0.2928858,682.86,682.08,0.579]
[1748498203213,0.2928858,682.86,682.09,1.05097823]
[1748498203408,0.2928858,682.86,682.08,0.579]
[1748498203612,0.2928858,682.86,682.09,1.0509685]
[1748498203812,0.2928858,682.86,682.08,0.579]
[1748498206118,0.2928858,682.86,682.09,1.05140358]
[1748498206315,0.2928858,682.86,682.08,0.579]
[1748498206514,0.2928858,682.86,682.1,0.657]
[1748498218725,0.2928858,682.86,682.08,0.579]
[1748498221028,0.2928858,682.86,682.09,0.49]
[1748498229830,0.2928858,682.86,682.1,0.5692507]
[1748498230036,0.2928858,682.86,682.09,0.49]
[1748498230536,0.2928858,682.86,682.1,0.56925152]
[1748498230733,0.2928858,682.86,682.11,0.5694933]
[1748498230942,0.2928858,682.86,682.12,0.5694933]
[1748498231133,0.2928858,682.86,682.1,0.56925152]
[1748498231134,0.2928858,682.86,682.13,0.56949314]
[1748498231334,0.2928858,682.86,682.1,0.56925152]
[1748498231933,0.2928858,682.86,682.11,0.57877884]
[1748498232134,0.2928858,682.86,682.1,0.56925152]
[1748498232835,0.2928858,682.86,682.11,0.57877817]
[1748498233140,0.2928858,682.86,682.12,0.57877708]
[1748498233335,0.2928858,682.86,682.1,0.56925152]
[1748498233537,0.2928858,682.86,682.11,0.57828983]
[1748498233743,0.2928858,682.86,682.12,0.57904239]
[1748498233937,0.2928858,682.86,682.1,0.56925152]
[1748498235241,0.2928858,682.86,682.11,0.57902883]
[1748498235542,0.2928858,682.86,682.1,0.56925152]
[1748498235739,0.2928858,682.86,682.11,0.57902975]
[1748498235940,0.2928858,682.86,682.1,0.56925152]
[1748498236641,0.2928858,682.86,682.11,0.57901657]
[1748498236942,0.2928858,682.86,682.1,0.56925152]
[1748498237141,0.2928858,682.86,682.11,0.5790169]
[1748498237338,0.2928858,682.86,682.12,0.5790169]
[1748498237540,0.2928858,682.86,682.1,0.56925152]
[1748498238144,0.2928858,682.86,682.11,0.569]
[1748498240247,0.2928858,682.86,682.12,0.57877566]
[1748498240445,0.2928858,682.86,682.11,0.569]
[1748498240941,0.2928858,682.86,682.12,0.57877413]
[1748498241147,0.2928858,682.86,682.11,0.569]
[1748498250952,0.2928858,682.86,682.12,0.58194115]
[1748498251158,0.2928858,682.86,682.13,0.58193814]
[1748498251459,0.2928858,682.86,682.14,0.58193757]
[1748498251653,0.2928858,682.86,682.15,0.58194036]
[1748498251955,0.2928858,682.86,682.11,0.569]
[1748498252157,0.2928858,682.86,682.12,0.58194366]
[1748498252355,0.2928858,682.86,682.11,0.569]
[1748498252959,0.2928858,682.86,682.12,0.58195637]
[1748498253460,0.2928858,682.86,682.13,0.58195739]
[1748498254463,0.2928858,682.86,682.14,0.58194693]
[1748498254657,0.2928858,682.86,682.15,0.58194693]
[1748498254858,0.2928858,682.86,682.13,0.58195739]
[1748498255264,0.2928858,682.86,682.14,0.58194285]
[1748498255460,0.2928858,682.86,682.13,0.58195739]
[1748498257163,0.2928858,682.86,682.14,0.5819531]
[1748498257464,0.2928858,682.86,682.13,0.58195739]
[1748498257864,0.2928858,682.86,682.14,0.58195016]
[1748498258065,0.2928858,682.86,682.13,0.58195739]
[1748498258959,0.2928858,682.86,682.14,0.5819415]
[1748498259161,0.2928858,682.86,682.13,0.58195739]
[1748498260166,0.2928858,682.86,682.14,0.58190878]
[1748498260366,0.2928858,682.86,682.15,0.58190878]
[1748498260562,0.2928858,682.86,682.16,0.58190878]
[1748498260764,0.2928858,682.86,682.13,0.58195739]
[1748498260968,0.2928858,682.86,682.14,0.58196741]
[1748498261171,0.2928858,682.86,682.15,0.58192398]
[1748498261368,0.2928858,682.86,682.16,0.58192436]
[1748498261567,0.2928858,682.86,682.17,0.58192436]
[1748498261766,0.2928858,682.86,682.15,0.506]
[1748498261969,0.2928858,682.86,682.16,0.58170079]
[1748498262265,0.2928858,682.86,682.17,0.58170079]
[1748498262471,0.2928858,682.86,682.18,0.58039009]
[1748498262670,0.2928858,682.86,682.15,0.506]
[1748498263171,0.2928858,682.86,682.16,0.58023347]
[1748498263371,0.2928858,682.86,682.17,0.5802281]
[1748498263569,0.2928858,682.86,682.15,0.506]
[1748498263570,0.2928858,682.86,682.18,0.5802281]
[1748498263771,0.2928858,682.86,682.15,0.506]
[1748498263970,0.2928858,682.86,682.16,0.58142113]
[1748498264170,0.2928858,682.86,682.17,0.58146645]
[1748498264366,0.2928858,682.86,682.18,0.58146645]
[1748498264568,0.2928858,682.86,682.15,0.506]
[1748498264766,0.2928858,682.86,682.16,0.58147184]
[1748498264967,0.2928858,682.86,682.15,0.506]
[1748498265571,0.2928858,682.86,682.16,0.58142436]
[1748498265767,0.2928858,682.86,682.15,0.506]
[1748498266068,0.2928858,682.86,682.16,0.58142164]
[1748498266272,0.2928858,682.86,682.15,0.506]
[1748498266273,0.2928858,682.86,682.17,0.58142276]
[1748498266472,0.2928858,682.86,682.15,0.506]
[1748498266775,0.2928858,682.86,682.16,0.58138951]
[1748498266971,0.2928858,682.86,682.15,0.506]
[1748498267769,0.2928858,682.86,682.16,0.5813523]
[1748498267970,0.2928858,682.86,682.15,0.506]
[1748498269369,0.2928858,682.86,682.16,0.58132897]
[1748498269574,0.2928858,682.86,682.15,0.506]
[1748498270675,0.2928858,682.86,682.16,0.58138437]
[1748498270873,0.2928858,682.86,682.15,0.506]
[1748498271068,0.2928858,682.86,682.16,0.58138153]
[1748498271273,0.2928858,682.86,682.17,0.58136946]
[1748498271470,0.2928858,682.86,682.18,0.58136946]
[1748498271773,0.2928858,682.86,682.15,0.506]
[1748498271968,0.2928858,682.86,682.16,0.58121132]
[1748498272170,0.2928858,682.86,682.17,0.58120031]
[1748498272371,0.2928858,682.86,682.18,0.58114406]
[1748498272572,0.2928858,682.86,682.19,0.58114406]
[1748498272776,0.2928858,682.86,682.2,0.58114406]
[1748498273071,0.2928858,682.86,682.15,0.506]
[1748498273275,0.2928858,682.86,682.16,0.58092937]
[1748498273574,0.2928858,682.86,682.13,0.58195739]
[1748498273774,0.2928858,682.86,682.14,0.58081305]
[1748498273973,0.2928858,682.86,682.15,0.58085289]
[1748498274274,0.2928858,682.86,682.16,0.58097937]
[1748498274570,0.2928858,682.86,682.17,0.58097937]
[1748498274870,0.2928858,682.86,682.18,0.58097937]
[1748498275075,0.2928858,682.86,682.19,0.58091777]
[1748498275374,0.2928858,682.86,682.13,0.58195739]
[1748498275570,0.2928858,682.86,682.14,0.57981516]
[1748498275874,0.2928858,682.86,682.13,0.58195739]
[1748498276268,0.2928858,682.86,682.14,0.558]
[1748498277976,0.2928858,682.86,682.15,1.29781612]
[1748498278271,0.2928858,682.86,682.15,0.718]
[1748498278476,0.2928858,682.86,682.16,0.57999374]
[1748498278675,0.2928858,682.86,682.15,0.718]
[1748498278876,0.2928858,682.86,682.16,0.57999648]
[1748498279075,0.2928858,682.86,682.17,0.57999283]
[1748498279272,0.2928858,682.86,682.15,0.718]
[1748498279475,0.2928858,682.86,682.16,0.57999167]
[1748498279676,0.2928858,682.86,682.17,0.57999167]
[1748498279876,0.2928858,682.86,682.18,0.57999167]
[1748498280074,0.2928858,682.86,682.15,0.718]
[1748498280075,0.2928858,682.86,682.19,0.57999167]
[1748498280374,0.2928858,682.86,682.15,0.718]
[1748498280574,0.2928858,682.86,682.16,0.58001056]
[1748498280776,0.2928858,682.86,682.17,0.58001115]
[1748498280975,0.2928858,682.86,682.18,0.58001115]
[1748498281176,0.2928858,682.86,682.19,0.58001115]
[1748498281375,0.2928858,682.86,682.15,0.718]
[1748498281577,0.2928858,682.86,682.16,0.580057]
[1748498281872,0.2928858,682.86,682.17,0.580057]
[1748498282074,0.2928858,682.86,682.18,0.580057]
[1748498282277,0.2928858,682.86,682.19,0.58004575]
[1748498282475,0.2928858,682.86,682.15,0.718]
[1748498282678,0.2928858,682.86,682.16,0.58005055]
[1748498282875,0.2928858,682.86,682.15,0.718]
[1748498283275,0.2928858,682.86,682.16,0.57999494]
[1748498283575,0.2928858,682.86,682.15,0.718]
[1748498284176,0.2928858,682.86,682.16,0.57998865]
[1748498284382,0.2928858,682.86,682.15,0.718]
[1748498284582,0.2928858,682.86,682.16,0.57997735]
[1748498284775,0.2928858,682.86,682.15,0.718]
[1748498285577,0.2928858,682.86,682.16,0.57998019]
[1748498285781,0.2928858,682.86,682.17,0.57999386]
[1748498285981,0.2928858,682.86,682.18,0.57999386]
[1748498286176,0.2928858,682.86,682.19,0.57999386]
[1748498286378,0.2928858,682.86,682.2,0.57999386]
[1748498286577,0.2928858,682.86,682.15,0.718]
[1748498286878,0.2928858,682.86,682.16,0.58013012]
[1748498287179,0.2928858,682.86,682.17,0.58013012]
[1748498287382,0.2928858,682.86,682.15,0.718]
[1748498287784,0.2928858,682.86,682.16,0.5801566]
[1748498287983,0.2928858,682.86,682.15,0.718]
[1748498288386,0.2928858,682.86,682.16,0.58046598]
[1748498288584,0.2928858,682.86,682.17,0.58046598]